[Event "Live Chess"]
[Site "Chess.com"]
[Date "2023.05.20"]
[Round "-"]
[White "wot-not"]
[Black "ossie57"]
[Result "0-1"]
[WhiteElo "1482"]
[BlackElo "1916"]
[TimeControl "300"]
[EndTime "12:54:38 PDT"]
[Termination "ossie57 won by resignation"]

1. e4 {[%clk 0:04:56.3]} 1... d5 {[%clk 0:04:58.8]} 2. e5 {[%clk 0:04:55.1]}
2... c5 {[%clk 0:04:55]} 3. f4 {[%clk 0:04:53.4]} 3... Nc6 {[%clk 0:04:53.7]} 4.
Nf3 {[%clk 0:04:51.6]} 4... Bg4 {[%clk 0:04:47.3]} 5. Be2 {[%clk 0:04:48.5]}
5... e6 {[%clk 0:04:46.1]} 6. h3 {[%clk 0:04:46.6]} 6... Bxf3 {[%clk 0:04:45]}
7. Bxf3 {[%clk 0:04:45.9]} 7... Qh4+ {[%clk 0:04:41.4]} 8. Kf1 {[%clk
0:04:42.6]} 8... c4 {[%clk 0:04:35.3]} 9. d4 {[%clk 0:04:36.9]} 9... cxd3 {[%clk
0:04:29.7]} 10. Qxd3 {[%clk 0:04:35.3]} 10... Bc5 {[%clk 0:04:26.7]} 11. Be3
{[%clk 0:04:28.2]} 11... Bxe3 {[%clk 0:04:16.7]} 12. Qxe3 {[%clk 0:04:27.5]}
12... Nge7 {[%clk 0:04:15.1]} 13. Nc3 {[%clk 0:04:23.2]} 13... Nf5 {[%clk
0:04:11.5]} 14. Qf2 {[%clk 0:04:18]} 14... Qxf2+ {[%clk 0:04:00.3]} 15. Kxf2
{[%clk 0:04:16.8]} 15... O-O {[%clk 0:03:54.1]} 16. Ne2 {[%clk 0:03:55.5]} 16...
Rac8 {[%clk 0:03:43.4]} 17. c3 {[%clk 0:03:54.3]} 17... d4 {[%clk 0:03:40.9]}
18. Bxc6 {[%clk 0:03:49.9]} 18... Rxc6 {[%clk 0:03:35.9]} 19. Nxd4 {[%clk
0:03:47.5]} 19... Nxd4 {[%clk 0:03:34.7]} 20. cxd4 {[%clk 0:03:46.8]} 20... Rc2+
{[%clk 0:03:33.7]} 21. Kg3 {[%clk 0:03:41.7]} 21... Rxb2 {[%clk 0:03:28.9]} 22.
Rhc1 {[%clk 0:03:26.4]} 22... h6 {[%clk 0:03:20.6]} 23. Rc7 {[%clk 0:03:24.5]}
23... Rd8 {[%clk 0:03:19.5]} 24. Rc4 {[%clk 0:03:18.5]} 24... b5 {[%clk
0:03:14]} 25. Rc7 {[%clk 0:03:14.1]} 25... a5 {[%clk 0:03:12]} 26. Rac1 {[%clk
0:03:02]} 26... Rxa2 {[%clk 0:02:59.3]} 27. Rb7 {[%clk 0:02:48.7]} 27... b4
{[%clk 0:02:50.1]} 28. Rcc7 {[%clk 0:02:46.4]} 28... Rf8 {[%clk 0:02:49.4]} 29.
Ra7 {[%clk 0:02:26.6]} 29... b3 {[%clk 0:02:33.8]} 30. Rcb7 {[%clk 0:02:25.5]}
30... a4 {[%clk 0:02:32.6]} 31. f5 {[%clk 0:02:24.2]} 31... exf5 {[%clk
0:02:30.5]} 32. d5 {[%clk 0:02:23.6]} 32... Ra3 {[%clk 0:02:26.9]} 33. e6 {[%clk
0:02:20]} 33... b2+ {[%clk 0:02:21.1]} 34. Kh4 {[%clk 0:02:16.9]} 34... Rb3
{[%clk 0:02:00.8]} 35. Rxf7 {[%clk 0:01:38.4]} 35... Rxf7 {[%clk 0:01:55.4]} 36.
exf7+ {[%clk 0:01:34.4]} 36... Kf8 {[%clk 0:01:54.3]} 0-1

[Event "Live Chess"]
[Site "Chess.com"]
[Date "2023.05.20"]
[Round "-"]
[White "atunnacl"]
[Black "zdanevych"]
[Result "0-1"]
[WhiteElo "1732"]
[BlackElo "1532"]
[TimeControl "300"]
[EndTime "12:54:48 PDT"]
[Termination "zdanevych won on time"]

1. e4 {[%clk 0:04:58.2]} 1... c5 {[%clk 0:04:58.9]} 2. Nf3 {[%clk 0:04:53.2]}
2... e6 {[%clk 0:04:58.2]} 3. g3 {[%clk 0:04:51.1]} 3... d5 {[%clk 0:04:57.6]}
4. exd5 {[%clk 0:04:48.7]} 4... exd5 {[%clk 0:04:57]} 5. Bg2 {[%clk 0:04:47.3]}
5... Bg4 {[%clk 0:04:53.7]} 6. h3 {[%clk 0:04:42.2]} 6... Bh5 {[%clk 0:04:51.7]}
7. g4 {[%clk 0:04:40.9]} 7... Bg6 {[%clk 0:04:50.5]} 8. O-O {[%clk 0:04:37.3]}
8... Be7 {[%clk 0:04:49.8]} 9. d4 {[%clk 0:04:34.5]} 9... cxd4 {[%clk
0:04:46.8]} 10. Nxd4 {[%clk 0:04:33.3]} 10... Nc6 {[%clk 0:04:45.5]} 11. c3
{[%clk 0:04:29.2]} 11... Nf6 {[%clk 0:04:43.5]} 12. Re1 {[%clk 0:04:27.7]} 12...
O-O {[%clk 0:04:40.6]} 13. Bf4 {[%clk 0:04:13.4]} 13... Bc5 {[%clk 0:04:34.2]}
14. Nf3 {[%clk 0:03:48]} 14... Qb6 {[%clk 0:04:29.9]} 15. Be3 {[%clk 0:03:44.6]}
15... Bxe3 {[%clk 0:04:24.2]} 16. Rxe3 {[%clk 0:03:41.7]} 16... Qxb2 {[%clk
0:04:23.2]} 17. Nbd2 {[%clk 0:03:33.8]} 17... Be4 {[%clk 0:04:04.5]} 18. Nb3
{[%clk 0:03:29]} 18... Rfe8 {[%clk 0:03:24]} 19. Qe1 {[%clk 0:02:56.9]} 19...
Bxf3 {[%clk 0:03:14.6]} 20. Bxf3 {[%clk 0:02:41]} 20... Rxe3 {[%clk 0:03:07.4]}
21. fxe3 {[%clk 0:02:39.8]} 21... Ne5 {[%clk 0:02:52.6]} 22. Bg2 {[%clk
0:02:26.8]} 22... Nc4 {[%clk 0:02:40.6]} 23. Rb1 {[%clk 0:02:14]} 23... Qxa2
{[%clk 0:02:31.6]} 24. Nd4 {[%clk 0:02:12.8]} 24... h6 {[%clk 0:02:15.4]} 25.
Rxb7 {[%clk 0:02:09.5]} 25... Re8 {[%clk 0:02:09.8]} 26. Qg3 {[%clk 0:01:39.9]}
26... Rxe3 {[%clk 0:01:48.9]} 27. Rb8+ {[%clk 0:01:36]} 27... Kh7 {[%clk
0:01:45.3]} 28. Qf4 {[%clk 0:01:24.1]} 28... Qa6 {[%clk 0:01:16.7]} 29. g5
{[%clk 0:00:59.5]} 29... Nh5 {[%clk 0:00:58.3]} 30. gxh6 {[%clk 0:00:20.9]}
30... Qxh6 {[%clk 0:00:56.3]} 31. Qf5+ {[%clk 0:00:18.3]} 31... Qg6 {[%clk
0:00:53.6]} 32. Qxg6+ {[%clk 0:00:13.9]} 32... Kxg6 {[%clk 0:00:53.5]} 33. Bxd5
{[%clk 0:00:09.6]} 33... Nb6 {[%clk 0:00:46.6]} 34. Bg2 {[%clk 0:00:04.9]} 34...
Nf4 {[%clk 0:00:43.2]} 35. Rd8 {[%clk 0:00:00.1]} 35... Re1+ {[%clk 0:00:40.9]}
0-1

[Event "Live Chess"]
[Site "Chess.com"]
[Date "2023.05.20"]
[Round "-"]
[White "terrub10"]
[Black "OleksiyJr1"]
[Result "0-1"]
[WhiteElo "726"]
[BlackElo "962"]
[TimeControl "300"]
[EndTime "12:54:49 PDT"]
[Termination "OleksiyJr1 won by checkmate"]

1. d4 {[%clk 0:04:59.2]} 1... Nf6 {[%clk 0:04:57]} 2. Bg5 {[%clk 0:04:56.4]}
2... c6 {[%clk 0:04:51.8]} 3. Bxf6 {[%clk 0:04:55]} 3... gxf6 {[%clk 0:04:51.4]}
4. e4 {[%clk 0:04:53.4]} 4... Bg7 {[%clk 0:04:50.7]} 5. Nf3 {[%clk 0:04:50.4]}
5... e5 {[%clk 0:04:50.2]} 6. Nc3 {[%clk 0:04:45.6]} 6... exd4 {[%clk 0:04:46]}
7. Nxd4 {[%clk 0:04:40.4]} 7... d5 {[%clk 0:04:30.4]} 8. exd5 {[%clk 0:04:34.3]}
8... cxd5 {[%clk 0:04:30.3]} 9. Nxd5 {[%clk 0:04:32.6]} 9... Qxd5 {[%clk
0:04:28.7]} 10. Bb5+ {[%clk 0:04:20.7]} 10... Nc6 {[%clk 0:04:24.5]} 11. Bxc6+
{[%clk 0:04:19]} 11... bxc6 {[%clk 0:04:07.3]} 12. b3 {[%clk 0:04:09.1]} 12...
f5 {[%clk 0:04:04.8]} 13. c4 {[%clk 0:04:07.2]} 13... Qxd4 {[%clk 0:04:01.4]}
14. Qxd4 {[%clk 0:04:04]} 14... Bxd4 {[%clk 0:04:01.3]} 15. Rd1 {[%clk
0:03:59.2]} 15... Bc3+ {[%clk 0:03:47.3]} 16. Ke2 {[%clk 0:03:51.3]} 16... Be6
{[%clk 0:03:39.6]} 17. Rd6 {[%clk 0:03:41.8]} 17... Rd8 {[%clk 0:03:33.6]} 18.
Rxc6 {[%clk 0:03:34.3]} 18... Rd2+ {[%clk 0:03:30.2]} 19. Ke3 {[%clk 0:03:31.4]}
19... Rxa2 {[%clk 0:03:28.7]} 20. Rc8+ {[%clk 0:03:22.3]} 20... Bxc8 {[%clk
0:03:01.3]} 21. Rb1 {[%clk 0:03:14]} 21... Bd2+ {[%clk 0:02:49.7]} 22. Kd3
{[%clk 0:03:10.2]} 22... O-O {[%clk 0:02:43.2]} 23. c5 {[%clk 0:03:01.5]} 23...
Rd8+ {[%clk 0:02:41.8]} 24. Kc4 {[%clk 0:02:58.7]} 24... Be6+ {[%clk 0:02:39.6]}
25. Kb5 {[%clk 0:02:56.1]} 25... Rb8+ {[%clk 0:02:37.6]} 26. Kc6 {[%clk
0:02:54.7]} 26... Ra6+ {[%clk 0:02:36]} 27. Kc7 {[%clk 0:02:53.4]} 27... Bf4#
{[%clk 0:02:33.6]} 0-1

[Event "Live Chess"]
[Site "Chess.com"]
[Date "2023.05.20"]
[Round "-"]
[White "chekagain"]
[Black "flyingpuffins"]
[Result "0-1"]
[WhiteElo "814"]
[BlackElo "1958"]
[TimeControl "300"]
[EndTime "12:54:57 PDT"]
[Termination "flyingpuffins won by checkmate"]

1. e4 {[%clk 0:04:57]} 1... d5 {[%clk 0:04:58.2]} 2. Nf3 {[%clk 0:04:55.2]} 2...
dxe4 {[%clk 0:04:56.4]} 3. Ng5 {[%clk 0:04:54.8]} 3... Nf6 {[%clk 0:04:55.6]} 4.
Bc4 {[%clk 0:04:51.8]} 4... e6 {[%clk 0:04:52.4]} 5. O-O {[%clk 0:04:46.8]} 5...
Be7 {[%clk 0:04:49.4]} 6. Nc3 {[%clk 0:04:38.2]} 6... O-O {[%clk 0:04:47.6]} 7.
Qe2 {[%clk 0:04:28.6]} 7... Nc6 {[%clk 0:04:44]} 8. Ncxe4 {[%clk 0:04:24.8]}
8... Nxe4 {[%clk 0:04:27.7]} 9. Qxe4 {[%clk 0:04:23.5]} 9... g6 {[%clk
0:04:23.2]} 10. Nxe6 {[%clk 0:04:08.5]} 10... fxe6 {[%clk 0:04:20]} 11. Bxe6+
{[%clk 0:04:08.4]} 11... Bxe6 {[%clk 0:04:17.6]} 12. Qxe6+ {[%clk 0:04:06.7]}
12... Kh8 {[%clk 0:04:17]} 13. d3 {[%clk 0:04:02.2]} 13... Qd6 {[%clk
0:04:12.6]} 14. Qc4 {[%clk 0:03:43.4]} 14... Ne5 {[%clk 0:04:05.1]} 15. Qc3
{[%clk 0:03:19.5]} 15... Bf6 {[%clk 0:04:01.7]} 16. d4 {[%clk 0:03:12.7]} 16...
Nc6 {[%clk 0:03:58.6]} 17. Qh3 {[%clk 0:02:54.7]} 17... Nxd4 {[%clk 0:03:54.6]}
18. Bh6 {[%clk 0:02:51.1]} 18... Ne2+ {[%clk 0:03:51.3]} 19. Kh1 {[%clk
0:02:47.9]} 19... Rfe8 {[%clk 0:03:48.8]} 20. Rae1 {[%clk 0:02:44.3]} 20... Bxb2
{[%clk 0:03:45.2]} 21. Qf3 {[%clk 0:02:28.3]} 21... Nd4 {[%clk 0:03:34.3]} 22.
Rxe8+ {[%clk 0:02:25.8]} 22... Rxe8 {[%clk 0:03:32.6]} 23. Rd1 {[%clk
0:01:58.7]} 23... Nxf3 {[%clk 0:03:29.2]} 24. gxf3 {[%clk 0:01:56.4]} 24...
Qxd1+ {[%clk 0:03:27.6]} 25. Kg2 {[%clk 0:01:54.9]} 25... Re1 {[%clk 0:03:22.9]}
26. f4 {[%clk 0:01:49]} 26... Rg1+ {[%clk 0:03:19.8]} 27. Kh3 {[%clk 0:01:47.1]}
27... Qf3+ {[%clk 0:03:19.4]} 28. Kh4 {[%clk 0:01:45.8]} 28... Qg4# {[%clk
0:03:17.2]} 0-1

[Event "Live Chess"]
[Site "Chess.com"]
[Date "2023.05.20"]
[Round "-"]
[White "LiamClery2020"]
[Black "Delacorta"]
[Result "1-0"]
[WhiteElo "2072"]
[BlackElo "1448"]
[TimeControl "300"]
[EndTime "12:55:03 PDT"]
[Termination "LiamClery2020 won by resignation"]

1. e4 {[%clk 0:04:59.5]} 1... e6 {[%clk 0:04:56.9]} 2. d4 {[%clk 0:04:56.7]}
2... d5 {[%clk 0:04:56]} 3. Nd2 {[%clk 0:04:56.3]} 3... dxe4 {[%clk 0:04:54.8]}
4. Nxe4 {[%clk 0:04:56.2]} 4... Bd7 {[%clk 0:04:54.3]} 5. Nf3 {[%clk 0:04:54.8]}
5... Bc6 {[%clk 0:04:53.6]} 6. Ng3 {[%clk 0:04:53.4]} 6... Nd7 {[%clk
0:04:52.6]} 7. c3 {[%clk 0:04:52.6]} 7... Ngf6 {[%clk 0:04:51.7]} 8. Bd3 {[%clk
0:04:52]} 8... Bxf3 {[%clk 0:04:50.7]} 9. Qxf3 {[%clk 0:04:50.4]} 9... c6 {[%clk
0:04:50.1]} 10. Bg5 {[%clk 0:04:49.6]} 10... Be7 {[%clk 0:04:49.4]} 11. O-O
{[%clk 0:04:46]} 11... O-O {[%clk 0:04:48.3]} 12. Bxf6 {[%clk 0:04:41.9]} 12...
Nxf6 {[%clk 0:04:45.1]} 13. Nh5 {[%clk 0:04:41.3]} 13... Nxh5 {[%clk 0:04:39.6]}
14. Qxh5 {[%clk 0:04:41.2]} 14... g6 {[%clk 0:04:39]} 15. Qh3 {[%clk 0:04:39.1]}
15... Bf6 {[%clk 0:04:37.6]} 16. Rae1 {[%clk 0:04:37]} 16... Bg7 {[%clk
0:04:36.5]} 17. f4 {[%clk 0:04:33.9]} 17... c5 {[%clk 0:04:35.8]} 18. dxc5
{[%clk 0:04:29.9]} 18... Rc8 {[%clk 0:04:32]} 19. Rd1 {[%clk 0:04:27.3]} 19...
Qc7 {[%clk 0:04:17.3]} 20. b4 {[%clk 0:04:25.7]} 20... Bxc3 {[%clk 0:04:15.7]}
21. Bxg6 {[%clk 0:04:25]} 21... fxg6 {[%clk 0:04:14]} 22. Qxc3 {[%clk
0:04:24.1]} 22... Rxf4 {[%clk 0:04:10.1]} 23. Rxf4 {[%clk 0:04:23.6]} 23... Qxf4
{[%clk 0:04:09.3]} 24. Rd7 {[%clk 0:04:23.1]} 24... Qh6 {[%clk 0:03:41.7]} 25.
Rxb7 {[%clk 0:04:20.4]} 25... Rd8 {[%clk 0:03:18.5]} 26. Qf3 {[%clk 0:03:47.5]}
26... Qc1+ {[%clk 0:02:55.6]} 27. Kf2 {[%clk 0:03:46.3]} 27... Rf8 {[%clk
0:02:39.5]} 28. Qxf8+ {[%clk 0:03:41.1]} 28... Kxf8 {[%clk 0:02:37.7]} 29. Rxa7
{[%clk 0:03:40.7]} 29... Qd2+ {[%clk 0:02:32.5]} 30. Kg3 {[%clk 0:03:38.7]}
30... Qxb4 {[%clk 0:02:28.9]} 31. Rc7 {[%clk 0:03:29.2]} 31... Qc3+ {[%clk
0:02:24.7]} 32. Kf2 {[%clk 0:03:27.7]} 32... Qd2+ {[%clk 0:02:20.2]} 33. Kg3
{[%clk 0:03:24.8]} 33... Qe3+ {[%clk 0:02:17.5]} 34. Kg4 {[%clk 0:03:21.6]}
34... Qe4+ {[%clk 0:02:13.6]} 35. Kh3 {[%clk 0:03:20.5]} 35... Qf5+ {[%clk
0:02:08.2]} 36. g4 {[%clk 0:03:18.4]} 36... Qf3+ {[%clk 0:02:04.1]} 37. Kh4
{[%clk 0:03:17.7]} 37... h6 {[%clk 0:01:59]} 38. Rh7 {[%clk 0:03:09.1]} 38...
Qc6 {[%clk 0:01:52.4]} 39. Rxh6 {[%clk 0:03:05.8]} 39... Qxc5 {[%clk 0:01:51.4]}
40. Rxg6 {[%clk 0:03:03.6]} 40... Qf2+ {[%clk 0:01:46.9]} 41. Kg5 {[%clk
0:03:02.1]} 41... Qxh2 {[%clk 0:01:43.8]} 42. Rxe6 {[%clk 0:02:57.7]} 42... Qd2+
{[%clk 0:01:40.6]} 43. Kf5 {[%clk 0:02:53.1]} 43... Qxa2 {[%clk 0:01:36.1]} 44.
Re4 {[%clk 0:02:45.3]} 44... Qd5+ {[%clk 0:01:34.4]} 45. Kf4 {[%clk 0:02:44.4]}
45... Kf7 {[%clk 0:01:29.8]} 46. Re5 {[%clk 0:02:37.7]} 46... Qd6 {[%clk
0:01:26.5]} 47. Ke4 {[%clk 0:02:35]} 47... Kg6 {[%clk 0:01:22.2]} 48. Rd5 {[%clk
0:02:31.2]} 48... Qe6+ {[%clk 0:01:18.1]} 49. Re5 {[%clk 0:02:28.6]} 49... Qxg4+
{[%clk 0:01:17]} 50. Kd5 {[%clk 0:02:28.2]} 50... Kf6 {[%clk 0:01:14.8]} 51. Re4
{[%clk 0:02:25]} 51... Qd7+ {[%clk 0:01:11.8]} 52. Kc4 {[%clk 0:02:21.5]} 52...
Qa4+ {[%clk 0:01:10.2]} 53. Kd5 {[%clk 0:02:20]} 53... Kf5 {[%clk 0:01:09]} 54.
Rxa4 {[%clk 0:02:18]} 54... Kf6 {[%clk 0:01:05.3]} 55. Rf4+ {[%clk 0:02:16.7]}
55... Ke7 {[%clk 0:01:04.5]} 56. Rf5 {[%clk 0:02:15.3]} 1-0

[Event "Live Chess"]
[Site "Chess.com"]
[Date "2023.05.20"]
[Round "-"]
[White "reshmiramachandran"]
[Black "ZombieChainsaw"]
[Result "0-1"]
[WhiteElo "515"]
[BlackElo "1862"]
[TimeControl "300"]
[EndTime "12:55:07 PDT"]
[Termination "ZombieChainsaw won by checkmate"]

1. e4 {[%clk 0:04:56.8]} 1... c5 {[%clk 0:04:58.6]} 2. Nf3 {[%clk 0:04:54.2]}
2... Nc6 {[%clk 0:04:57.7]} 3. Bb5 {[%clk 0:04:51]} 3... g6 {[%clk 0:04:56.5]}
4. Bxc6 {[%clk 0:04:48.5]} 4... dxc6 {[%clk 0:04:55.3]} 5. Nc3 {[%clk
0:04:46.8]} 5... Bg7 {[%clk 0:04:53.9]} 6. d3 {[%clk 0:04:45.8]} 6... Qc7 {[%clk
0:04:52.1]} 7. O-O {[%clk 0:04:42.4]} 7... e5 {[%clk 0:04:50.3]} 8. Be3 {[%clk
0:04:37.7]} 8... b6 {[%clk 0:04:48.4]} 9. a3 {[%clk 0:04:34.4]} 9... Ne7 {[%clk
0:04:44.8]} 10. b4 {[%clk 0:04:32.5]} 10... cxb4 {[%clk 0:04:41.1]} 11. axb4
{[%clk 0:04:29.6]} 11... O-O {[%clk 0:04:35]} 12. Qd2 {[%clk 0:04:25.3]} 12...
f5 {[%clk 0:04:28.3]} 13. Bh6 {[%clk 0:04:19.9]} 13... Rd8 {[%clk 0:04:08.4]}
14. exf5 {[%clk 0:04:14.6]} 14... Nxf5 {[%clk 0:04:01.5]} 15. Bg5 {[%clk
0:04:12.2]} 15... Re8 {[%clk 0:03:52.9]} 16. Nh4 {[%clk 0:04:05.2]} 16... Qf7
{[%clk 0:03:17.6]} 17. Nxf5 {[%clk 0:03:59.7]} 17... Bxf5 {[%clk 0:03:15.2]} 18.
Ne2 {[%clk 0:03:55.7]} 18... Bf6 {[%clk 0:02:42.9]} 19. Bxf6 {[%clk 0:03:52.5]}
19... Qxf6 {[%clk 0:02:42.8]} 20. Ng3 {[%clk 0:03:50.8]} 20... Red8 {[%clk
0:02:29.9]} 21. Nxf5 {[%clk 0:03:48.6]} 21... Qxf5 {[%clk 0:02:27.5]} 22. h3
{[%clk 0:03:47.6]} 22... Rd4 {[%clk 0:02:18.9]} 23. g4 {[%clk 0:03:45.5]} 23...
Qd7 {[%clk 0:02:17.8]} 24. f3 {[%clk 0:03:42.2]} 24... Rf8 {[%clk 0:02:08.7]}
25. Qc3 {[%clk 0:03:39.5]} 25... Rf7 {[%clk 0:01:53.2]} 26. Rae1 {[%clk
0:03:31.7]} 26... Qd6 {[%clk 0:01:51.4]} 27. Qb3 {[%clk 0:03:24.7]} 27... Rxb4
{[%clk 0:01:41.1]} 28. Qa2 {[%clk 0:03:21.1]} 28... Kg7 {[%clk 0:01:30.2]} 29.
Qa1 {[%clk 0:03:13.3]} 29... Qd4+ {[%clk 0:01:26.4]} 30. Qxd4 {[%clk 0:03:11]}
30... exd4 {[%clk 0:01:25.6]} 31. Re4 {[%clk 0:03:07.6]} 31... c5 {[%clk
0:01:23.5]} 32. Kg2 {[%clk 0:03:05]} 32... Rb2 {[%clk 0:01:21.1]} 33. Rc1 {[%clk
0:03:02.7]} 33... a5 {[%clk 0:01:20.2]} 34. Kg3 {[%clk 0:02:58.8]} 34... a4
{[%clk 0:01:19.5]} 35. Re6 {[%clk 0:02:55.4]} 35... a3 {[%clk 0:01:17.8]} 36.
Rxb6 {[%clk 0:02:52.7]} 36... Rxb6 {[%clk 0:01:16.4]} 37. Ra1 {[%clk 0:02:48.8]}
37... Ra7 {[%clk 0:01:14.4]} 38. Kf4 {[%clk 0:02:45.5]} 38... a2 {[%clk
0:01:13.6]} 39. Kg3 {[%clk 0:02:42.8]} 39... Rb1 {[%clk 0:01:12.6]} 40. Rxb1
{[%clk 0:02:40.2]} 40... axb1=Q {[%clk 0:01:11.6]} 41. f4 {[%clk 0:02:38.3]}
41... Qxc2 {[%clk 0:01:10.3]} 42. f5 {[%clk 0:02:37.1]} 42... Qxd3+ {[%clk
0:01:09.3]} 43. Kh4 {[%clk 0:02:35.2]} 43... gxf5 {[%clk 0:01:05.7]} 44. gxf5
{[%clk 0:02:29.8]} 44... Qxf5 {[%clk 0:01:03.4]} 45. Kg3 {[%clk 0:02:26.8]}
45... Qg5+ {[%clk 0:01:02.6]} 46. Kh2 {[%clk 0:02:23.1]} 46... Ra2+ {[%clk
0:01:01.1]} 47. Kh1 {[%clk 0:02:19.3]} 47... Qg2# {[%clk 0:01:00.6]} 0-1

[Event "Live Chess"]
[Site "Chess.com"]
[Date "2023.05.20"]
[Round "-"]
[White "SupremeTactician"]
[Black "KGreenGator"]
[Result "1-0"]
[WhiteElo "2377"]
[BlackElo "1787"]
[TimeControl "300"]
[EndTime "12:55:14 PDT"]
[Termination "SupremeTactician won by checkmate"]

1. e4 {[%clk 0:04:57.4]} 1... c5 {[%clk 0:04:58.6]} 2. Nf3 {[%clk 0:04:54.2]}
2... Nc6 {[%clk 0:04:57.7]} 3. d4 {[%clk 0:04:52.9]} 3... cxd4 {[%clk
0:04:55.9]} 4. Nxd4 {[%clk 0:04:52.8]} 4... e5 {[%clk 0:04:54.4]} 5. Nb5 {[%clk
0:04:50.2]} 5... d6 {[%clk 0:04:52.5]} 6. N1c3 {[%clk 0:04:49.3]} 6... a6 {[%clk
0:04:51.1]} 7. Na3 {[%clk 0:04:48.5]} 7... Nf6 {[%clk 0:04:47.6]} 8. Bg5 {[%clk
0:04:46.7]} 8... Be7 {[%clk 0:04:45.8]} 9. Bxf6 {[%clk 0:04:45.5]} 9... Bxf6
{[%clk 0:04:44.8]} 10. Nd5 {[%clk 0:04:45.2]} 10... Bg5 {[%clk 0:04:43.4]} 11.
Bd3 {[%clk 0:04:39.9]} 11... O-O {[%clk 0:04:41.2]} 12. O-O {[%clk 0:04:38.6]}
12... b5 {[%clk 0:04:35.2]} 13. c4 {[%clk 0:04:34.1]} 13... b4 {[%clk
0:04:26.5]} 14. Nc2 {[%clk 0:04:29]} 14... a5 {[%clk 0:04:25]} 15. Nce3 {[%clk
0:04:20.9]} 15... Nd4 {[%clk 0:04:10.8]} 16. Nc2 {[%clk 0:03:51.1]} 16... Nxc2
{[%clk 0:04:07.2]} 17. Qxc2 {[%clk 0:03:51]} 17... Be6 {[%clk 0:03:57.1]} 18. b3
{[%clk 0:03:37.3]} 18... Rc8 {[%clk 0:03:53.9]} 19. Qe2 {[%clk 0:03:32.4]} 19...
Rc6 {[%clk 0:03:46.6]} 20. Rad1 {[%clk 0:03:20.8]} 20... Qd7 {[%clk 0:03:44]}
21. h3 {[%clk 0:03:12.6]} 21... f5 {[%clk 0:03:42]} 22. exf5 {[%clk 0:03:08.7]}
22... Bxf5 {[%clk 0:03:41]} 23. Bxf5 {[%clk 0:03:07.9]} 23... Qxf5 {[%clk
0:03:39]} 24. Rd3 {[%clk 0:02:33.4]} 24... Bd8 {[%clk 0:03:35.8]} 25. Rg3 {[%clk
0:02:30.1]} 25... Bh4 {[%clk 0:03:21.5]} 26. Rg4 {[%clk 0:02:24.1]} 26... Bd8
{[%clk 0:03:19.1]} 27. Qe3 {[%clk 0:02:05.8]} 27... Kh8 {[%clk 0:02:58.2]} 28.
Rg3 {[%clk 0:02:00.4]} 28... Qe6 {[%clk 0:02:50.5]} 29. Rf3 {[%clk 0:01:56.7]}
29... Rg8 {[%clk 0:02:46.5]} 30. Rd1 {[%clk 0:01:52.6]} 30... h6 {[%clk
0:02:42.4]} 31. Qe4 {[%clk 0:01:45.8]} 31... Rc8 {[%clk 0:02:36.5]} 32. Nf4
{[%clk 0:01:42.5]} 32... Qe8 {[%clk 0:02:18.3]} 33. Ng6+ {[%clk 0:01:39.1]}
33... Kh7 {[%clk 0:02:17]} 34. Nf8+ {[%clk 0:01:38.3]} 34... Kh8 {[%clk
0:02:13.7]} 35. Qh7# {[%clk 0:01:38.2]} 1-0

[Event "Live Chess"]
[Site "Chess.com"]
[Date "2023.05.20"]
[Round "-"]
[White "bristolunichess"]
[Black "Bob2pen"]
[Result "0-1"]
[WhiteElo "1772"]
[BlackElo "1817"]
[TimeControl "300"]
[EndTime "12:55:16 PDT"]
[Termination "Bob2pen won by resignation"]

1. e4 {[%clk 0:04:57.9]} 1... e6 {[%clk 0:04:57.9]} 2. d4 {[%clk 0:04:55.5]}
2... d5 {[%clk 0:04:57]} 3. e5 {[%clk 0:04:54.7]} 3... c5 {[%clk 0:04:55.8]} 4.
c3 {[%clk 0:04:54.3]} 4... Nc6 {[%clk 0:04:54.3]} 5. Nf3 {[%clk 0:04:51.6]} 5...
Qb6 {[%clk 0:04:52.9]} 6. Bd3 {[%clk 0:04:50.3]} 6... Bd7 {[%clk 0:04:51]} 7.
O-O {[%clk 0:04:49.6]} 7... cxd4 {[%clk 0:04:50]} 8. Re1 {[%clk 0:04:48.4]} 8...
dxc3 {[%clk 0:04:47.8]} 9. Nxc3 {[%clk 0:04:48.3]} 9... a6 {[%clk 0:04:45.8]}
10. a4 {[%clk 0:04:25.8]} 10... Bb4 {[%clk 0:04:43.7]} 11. a5 {[%clk 0:03:53.2]}
11... Bxa5 {[%clk 0:04:26.6]} 12. Be3 {[%clk 0:03:50.6]} 12... Qd8 {[%clk
0:04:18.3]} 13. Qa4 {[%clk 0:03:31.8]} 13... Bxc3 {[%clk 0:04:14.2]} 14. bxc3
{[%clk 0:03:27.4]} 14... Nxe5 {[%clk 0:04:10.7]} 15. Qa3 {[%clk 0:03:25.6]}
15... Nxf3+ {[%clk 0:04:04.1]} 16. gxf3 {[%clk 0:03:23.6]} 16... Ne7 {[%clk
0:04:02]} 17. Bc5 {[%clk 0:03:22]} 17... b6 {[%clk 0:03:56.7]} 18. Bd6 {[%clk
0:03:20.8]} 18... Nc8 {[%clk 0:03:50.7]} 19. Bf4 {[%clk 0:03:16.2]} 19... Qe7
{[%clk 0:03:46.4]} 20. Qb2 {[%clk 0:03:10.4]} 20... Qf6 {[%clk 0:03:38]} 21. Be5
{[%clk 0:03:08.6]} 21... Qg5+ {[%clk 0:03:33.3]} 22. Kh1 {[%clk 0:03:00.2]}
22... Qh5 {[%clk 0:03:29.5]} 23. Bf1 {[%clk 0:02:53.3]} 23... O-O {[%clk
0:03:27.2]} 24. Bg2 {[%clk 0:02:50.3]} 24... f6 {[%clk 0:03:24.8]} 25. Bd4
{[%clk 0:02:46.4]} 25... Rb8 {[%clk 0:03:17.4]} 26. Rg1 {[%clk 0:02:45.1]} 26...
e5 {[%clk 0:03:15.2]} 27. Be3 {[%clk 0:02:41.7]} 27... Bc6 {[%clk 0:03:09.9]}
28. Qe2 {[%clk 0:02:39.9]} 28... Nd6 {[%clk 0:03:02.7]} 29. Bf1 {[%clk
0:02:18.5]} 29... d4 {[%clk 0:02:51.9]} 30. cxd4 {[%clk 0:02:17.1]} 30... Bxf3+
{[%clk 0:02:50.3]} 0-1